fUSD/lending_fUSD_20240521
["ID","MTS","AMOUNT","RATE_DAILY","PERIOD"]
[327699771,1716325848417,-952.72,0.00031506,6]
[327699772,1716325848427,-2713.87,0.00031506,6]
[327699773,1716325848437,-786.11,0.00031506,6]
[327699774,1716325848447,-1286.27,0.00031506,6]
[327699775,1716325848457,-500.0,0.00031506,6]
[327699776,1716325848467,-702.16,0.00031506,6]
[327699777,1716325848477,-2099.55,0.00031506,6]
[327699778,1716325848487,-500.0,0.00031506,6]
[327699779,1716325848498,-919.85,0.00031506,6]
[327699780,1716325848508,-2183.27,0.00031506,6]
[327699781,1716325848517,-1295.01,0.00031506,6]
[327699782,1716325848527,-500.0,0.00031506,6]
[327699783,1716325848538,-818.12,0.00031506,6]
[327699784,1716325848548,-500.0,0.00031506,6]
[327699785,1716325848557,-500.0,0.00031506,6]
[327699786,1716325848567,-500.0,0.00031506,6]
[327699787,1716325848577,-5403.48,0.00031506,6]
[327699788,1716325848587,-500.0,0.00031506,6]
[327699789,1716325848597,-1617.03,0.00031506,6]
[327699790,1716325848606,-2136.88,0.00031506,6]
[327699791,1716325848616,-500.0,0.00031506,6]
[327699792,1716325848626,-1192.39,0.00031506,6]
[327699793,1716325848635,-500.0,0.00031506,6]
[327699794,1716325848645,-2048.26,0.00031506,6]
[327699795,1716325848655,-500.0,0.00031506,6]
[327699796,1716325848664,-1365.50521968,0.00031507,2]
[327699797,1716325848673,-150.01,0.00031524,2]
[327699798,1716325848684,-5871.71100266,0.00031524,2]
[327699799,1716325848693,-500.0,0.00031542,2]
[327699800,1716325848703,-500.0,0.00031542,2]
[327699801,1716325848713,-500.0,0.00031542,2]
[327699802,1716325848722,-500.0,0.00031542,2]
[327699803,1716325848731,-500.0,0.00031542,2]
[327699804,1716325848740,-500.0,0.00031542,2]
[327699805,1716325848750,-500.0,0.00031542,2]
[327699806,1716325848760,-500.0,0.00031542,2]
[327699807,1716325848769,-500.0,0.00031542,2]
[327699808,1716325848779,-500.0,0.00031542,2]
[327699809,1716325848788,-500.0,0.00031542,2]
[327699810,1716325848797,-500.0,0.00031542,2]
[327699811,1716325848806,-500.0,0.00031542,2]
[327699812,1716325848816,-500.0,0.00031542,2]
[327699813,1716325848826,-500.0,0.00031542,2]
[327699814,1716325848836,-500.0,0.00031542,2]
[327699815,1716325848846,-500.0,0.00031542,2]
[327699816,1716325848856,-500.0,0.00031542,2]
[327699817,1716325848865,-500.0,0.00031542,2]
[327699818,1716325848875,-500.0,0.00031542,2]
[327699819,1716325848886,-500.0,0.00031542,2]
[327699820,1716325848897,-500.0,0.00031542,2]
[327699821,1716325848908,-500.0,0.00031542,2]
[327699822,1716325848918,-500.0,0.00031542,2]
[327699823,1716325848927,-500.0,0.00031542,2]
[327699824,1716325848940,-500.0,0.00031542,2]
[327699825,1716325848949,-500.0,0.00031542,2]
[327699826,1716325848959,-500.0,0.00031542,2]
[327699827,1716325848968,-500.0,0.00031542,2]
[327699828,1716325848982,-500.0,0.00031542,2]
[327699829,1716325848991,-500.0,0.00031542,2]
[327699830,1716325849001,-500.0,0.00031542,2]
[327699831,1716325849011,-500.0,0.00031542,2]
[327699832,1716325849020,-500.0,0.00031542,2]
[327699833,1716325849029,-500.0,0.00031542,2]
[327699834,1716325849038,-500.0,0.00031542,2]
[327699835,1716325849048,-500.0,0.00031542,2]
[327699836,1716325849057,-500.0,0.00031542,2]
[327699837,1716325849067,-500.0,0.00031542,2]
[327699838,1716325849076,-500.0,0.00031542,2]
[327699839,1716325849085,-500.0,0.00031542,2]
[327699840,1716325849094,-500.0,0.00031542,2]
[327699841,1716325849103,-500.0,0.00031542,2]
[327699842,1716325849112,-500.0,0.00031542,2]
[327699843,1716325849121,-500.0,0.00031542,2]
[327699844,1716325849131,-500.0,0.00031542,2]
[327699845,1716325849140,-500.0,0.00031542,2]
[327699846,1716325849153,-500.0,0.00031542,2]
[327699847,1716325849163,-500.0,0.00031542,2]
[327699848,1716325849172,-500.0,0.00031542,2]
[327699849,1716325849183,-500.0,0.00031542,2]
[327699850,1716325849192,-500.0,0.00031542,2]
[327699851,1716325849203,-500.0,0.00031542,2]
[327699852,1716325849213,-500.0,0.00031542,2]
[327699853,1716325849223,-500.0,0.00031542,2]
[327699854,1716325849232,-500.0,0.00031542,2]
[327699855,1716325849242,-500.0,0.00031542,2]
[327699856,1716325849251,-500.0,0.00031542,2]
[327699857,1716325849260,-500.0,0.00031542,2]
[327699858,1716325849270,-500.0,0.00031542,2]
[327699859,1716325849279,-500.0,0.00031542,2]
[327699860,1716325849289,-500.0,0.00031542,2]
[327699861,1716325849298,-500.0,0.00031542,2]
[327699862,1716325849308,-500.0,0.00031542,2]
[327699863,1716325849317,-500.0,0.00031542,2]
[327699864,1716325849327,-500.0,0.00031542,2]
[327699865,1716325849336,-500.0,0.00031542,2]
[327699866,1716325849346,-500.0,0.00031542,2]
[327699867,1716325849355,-500.0,0.00031542,2]
[327699868,1716325849365,-500.0,0.00031542,2]
[327699869,1716325849374,-500.0,0.00031542,2]
[327699870,1716325849384,-500.0,0.00031542,2]
[327699871,1716325849397,-10360.4133267,0.00031542,2]
[327699872,1716325849407,-1086.4392648,0.00031542,2]
[327699873,1716325849416,-21302.1483172,0.00031542,2]
[327699874,1716325849426,-350.80735591,0.00031544,10]
[327699875,1716325849436,-98240.4064801,0.00031544,5]
[327699876,1716325849449,-2199.22889,0.00031544,5]
[327699877,1716325849609,-1112.92577071,0.00031544,5]
[327699878,1716325849623,-586.80049511,0.00031544,5]
[327699879,1716325849635,-409.45999997,0.00031544,5]
[327699880,1716325849726,-5895.21044934,0.00031544,5]
[327699881,1716325849738,-775.77409809,0.00031544,5]
[327699882,1716325849752,-1013.22885838,0.00031544,5]
[327699883,1716325849764,-4608.4,0.00031544,5]
[327699884,1716325849777,-1022.04087,0.00031544,5]
[327699885,1716325849788,-2107.12544579,0.00031544,5]
[327699886,1716325849801,-10454.55,0.00031544,5]
[327699887,1716325849813,-500.09,0.00031544,5]
[327699888,1716325850187,-523.4267224,0.00030409,4]
[327699889,1716325850197,-500.0,0.0003041,6]
[327699890,1716325850206,-500.0,0.0003041,6]
[327699891,1716325850216,-500.0,0.00030684,6]
[327699892,1716325850226,-500.0,0.00030684,6]
[327699893,1716325850236,-156.88108991,0.00030958,6]
[327699894,1716325850256,-343.11891009,0.00030958,6]
[327699895,1716325850266,-439.79108991,0.00030958,6]
[327699896,1716325850279,-60.20891009,0.00030958,6]
[327699897,1716325850289,-500.0,0.00031232,6]
[327699898,1716325850299,-559.7,0.00031232,6]
[327699899,1716325850310,-500.0,0.00031506,6]
[327699900,1716325850542,-92007.59108846,0.00031544,5]
[327699901,1716325850554,-34876.50000007,0.00031544,5]
[327699902,1716325850565,-748.12442162,0.00031544,5]
[327699903,1716325850580,-563.8784653,0.00031544,5]
[327699904,1716325850599,-8117.93233615,0.00031544,5]
[327699905,1716325850608,-152.872,0.00031564,2]
[327699906,1716325850617,-150.127,0.00031564,2]
[327699907,1716325850627,-974.0,0.00031564,2]
[327699908,1716325850636,-1064.34382718,0.00031564,2]
[327699909,1716325850997,-155.1812949,0.00025,2]
[327699910,1716325851007,-221.11535165,0.0003041,6]
[327699911,1716325851019,-278.88464835,0.0003041,6]
[327699912,1716325851028,-163.03762846,0.00030684,4]
[327699913,1716326459749,593.29,0.0002524,120]
[327699914,1716326731134,-1067.96859219,0.00013905,2]
[327699915,1716326799941,187.26,0.00025684,120]
[327699916,1716326800210,187.26,0.00028894,120]
[327699917,1716326825087,-326.80688808,0.00013624,2]
[327699918,1716326825108,-155.0,0.00013625,2]
[327699919,1716326825128,-219.68061341,0.00013625,2]
[327699920,1716326834115,-208.68716527,0.00013623,2]
[327699921,1716326834135,-409.84120861,0.00013624,2]
[327699922,1716326834157,-62.20269104,0.00013625,2]
[327699923,1716326834178,-155.0,0.00013626,2]
[327699924,1716326834202,-1381.21503003,0.00013626,2]
[327699925,1716326834223,-1116.38822447,0.00013626,2]
[327699926,1716326840103,-1205.94903723,0.00013622,2]
[327699927,1716326840124,-6197.05684609,0.00013625,2]
[327699928,1716326847194,-241.55220599,0.00013353,2]
[327699944,1716327032458,-162.07757711,0.00013082,2]
[327699945,1716327032468,-98.7171577,0.00013082,2]
[327699946,1716327032479,-56.2828423,0.00013082,2]
[327699948,1716327032490,-155.0,0.00013082,2]
[327699950,1716327032499,-155.0,0.00013083,2]
[327699952,1716327032509,-234.2897403,0.00013083,2]
[327699954,1716327032519,-150.0,0.00013083,2]
[327699956,1716327032528,-3253.47369418,0.00013084,2]
[327699958,1716327032538,-2183.36203351,0.00013086,2]
[327699960,1716327032550,-421.65031775,0.00013086,2]
[327699962,1716327032559,-268.21166504,0.00013353,2]
[327699964,1716327032568,-298.96189554,0.00013353,2]
[327699966,1716327032578,-2263.8495,0.00013526,2]
[327699968,1716327032587,-1205.94903723,0.00013904,2]
[327699970,1716327032597,-499.99,0.00013905,2]
[327699972,1716327032606,-299.99,0.00013905,2]
[327699974,1716327032615,-19636.60235343,0.00013958,2]
[327699976,1716327032624,-685.77720287,0.00013959,2]
[327699978,1716327032636,-3912.26436498,0.00013959,2]
[327699980,1716327032645,-7920.56,0.00013959,2]
[327699982,1716327032655,-17321.82596906,0.00013961,2]
[327699984,1716327032664,-935.92,0.00013964,2]
[327699986,1716327032675,-166.15,0.00013973,2]
[327699988,1716327032684,-157.17,0.00013973,2]
[327699990,1716327032693,-154.47,0.00013973,2]
[327699999,1716327032877,-618.92358897,0.00016499,2]
[327700000,1716327032887,-167.63,0.00016538,2]
[327700001,1716327032897,-1227.04758271,0.00017259,2]
[327700002,1716327032906,-158.45359649,0.00018,2]
[327700003,1716327032916,-900.0,0.0001893,2]
[327700004,1716327032927,-690.01,0.00019196,2]
[327700005,1716327032937,-187.26,0.00019263,2]
[327700006,1716327032947,-6238.51672136,0.0002,2]
[327700007,1716327032957,-5185.19650813,0.0002,2]
[327700008,1716327032966,-862.15509982,0.0002,2]
[327700009,1716327032975,-1773.26835727,0.0002,2]
[327700010,1716327032985,-1263.02030366,0.0002,2]
[327700011,1716327032994,-503.05,0.00020011,2]
[327700012,1716327033003,-23900.0,0.00020144,2]
[327700013,1716327033013,-200.0,0.0002026,2]
[327700014,1716327033022,-250.0,0.00020719,2]
[327700015,1716327033031,-500.11,0.00021075,2]
[327700016,1716327033041,-500.11,0.00021132,2]
[327700017,1716327033050,-500.11,0.0002119,2]
[327700018,1716327033059,-500.11,0.00021248,2]
[327700019,1716327033069,-2621.0,0.000213,3]
[327700020,1716327033078,-500.11,0.00021306,2]
[327700021,1716327033087,-500.11,0.00021364,2]
[327700022,1716327033097,-500.11,0.00021421,2]
[327700023,1716327033106,-500.11,0.00021479,2]
[327700024,1716327033115,-500.11,0.00021537,2]
[327700025,1716327033125,-500.11,0.00021595,2]
[327700026,1716327033134,-690.01,0.00021595,2]
[327700027,1716327033144,-500.11,0.00021653,2]
[327700028,1716327033154,-500.11,0.0002171,2]
[327700029,1716327033163,-500.11,0.00021768,2]
[327700030,1716327033174,-500.11,0.00021826,2]
[327700031,1716327033184,-500.11,0.00021884,2]
[327700032,1716327033193,-1108.67,0.00021929,2]
[327700033,1716327033204,-1391.85,0.0002193,2]
[327700034,1716327033214,-500.11,0.00021942,2]
[327700035,1716327033223,-500.11,0.00022,2]
[327700036,1716327033232,-500.11,0.00022057,2]
[327700037,1716327033246,-500.11,0.00022115,2]
[327700038,1716327033257,-500.11,0.00022173,2]
[327700039,1716327033266,-9500.0,0.00022187,2]
[327700040,1716327033275,-503.05,0.00022275,2]
[327700041,1716327033287,-187.26,0.00022474,2]
[327700042,1716327033296,-5979.27,0.00022532,2]
[327700043,1716327033305,-5574.67,0.00022812,2]
[327700044,1716327033314,-250.0,0.00023776,2]
[327700045,1716327033325,-690.01,0.00023995,2]
[327700046,1716327033336,-472.29345627,0.00024,2]
[327700047,1716327033345,-2751.0,0.00024036,2]
[327700048,1716327033355,-157.17,0.00024224,2]
[327700049,1716327033364,-200.0,0.00024299,2]
[327700050,1716327033374,-181.56,0.00024419,2]
[327700051,1716327033383,-500.0,0.00024436,2]
[327700052,1716327033392,-503.05,0.00024539,2]
[327700053,1716327033401,-894.36,0.00024553,2]
[327700054,1716327033410,-175.33,0.00024584,2]
[327700055,1716327033420,-250.0,0.00024658,2]
[327700056,1716327033432,-1108.67,0.00024668,2]
[327700057,1716327033441,-150.0,0.00024756,2]
[327700058,1716327033450,-292.31595914,0.00025,2]
[327700059,1716327033460,-2030.65553094,0.0002514,2]
[327700060,1716327033469,-1043.64061414,0.0002524,2]
[327700061,1716327033479,-257.06478946,0.0002524,2]
[327700062,1716327033488,-1039.20687623,0.0002524,2]
[327700063,1716327033497,-445.32504803,0.0002524,2]
[327700064,1716327033506,-37475.68633145,0.0002524,2]
[327700065,1716327033516,-500.0,0.0002524,2]
[327700066,1716327033525,-9026.87060412,0.0002524,2]
[327700067,1716327033535,-2030.65553091,0.00026141,2]
[327700068,1716327033545,-690.01,0.00026394,2]
[327700069,1716327033554,-326.80688808,0.0002667,2]
[327700070,1716327033564,-155.0,0.0002667,2]
[327700071,1716327033573,-196.43933745,0.00026671,2]
[327700072,1716327033582,-503.05,0.00026802,2]
[327700073,1716327033591,-2030.65553091,0.00027141,2]
[327700074,1716327033602,-238.21561096,0.00027276,2]
[327700075,1716327033611,-155.0,0.00027277,2]
[327700076,1716327033621,-1108.67,0.00027408,2]
[327700077,1716327033630,-2030.65553091,0.00028142,2]
[327700078,1716327033639,-159.26249912,0.00028791,2]
[327700079,1716327033649,-690.01,0.00028794,2]
[327700080,1716327033658,-503.05,0.00029066,2]
[327700081,1716327033667,-19619.41922891,0.00029142,2]
[327700082,1716327033679,-2030.65553091,0.00029143,2]
[327700083,1716327033688,-154.47,0.00029349,2]
[327700084,1716327033697,-196.43933745,0.00029362,2]
[327700085,1716327033707,-372.71631495,0.00030018,2]
[327700086,1716327033717,-2030.65553091,0.00030143,2]
[327700087,1716327033738,-179.45,0.00030298,2]
[327700088,1716327033748,-155.0,0.00030306,4]
[327700089,1716327033758,-894.45284741,0.00030306,4]
[327700090,1716327033768,-157.20334897,0.00030307,4]
[327700091,1716327033778,-380.78028825,0.00030307,4]
[327700092,1716327033788,-155.0,0.00030308,4]
[327700093,1716327033799,-627.77142105,0.00030308,10]
[327700094,1716327033809,-811.7231,0.00030308,4]
[327700095,1716327033819,-210.63268264,0.00030308,4]
[327700096,1716327033829,-310.0,0.00030308,4]
[327700097,1716327033840,-156.32615111,0.00030308,4]
[327700098,1716327033850,-203.96513052,0.00030308,4]
[327700099,1716327033859,-200.62109391,0.00030308,4]
[327700100,1716327033869,-318.29985525,0.00030308,4]
[327700101,1716327033879,-155.0,0.00030308,4]
[327700102,1716327033890,-155.0,0.00030308,4]
[327700103,1716327033899,-155.49460868,0.00030308,4]
[327700104,1716327033910,-160.36367136,0.00030308,4]
[327700105,1716327033919,-195.42376414,0.00030308,4]
[327700106,1716327033931,-353.20057732,0.00030308,4]
[327700107,1716327033940,-13049.64384055,0.00030308,4]
[327700108,1716327033950,-157.7887999,0.00030308,4]
[327700109,1716327033960,-221.48704095,0.00030308,4]
[327700110,1716327033970,-1698.26715129,0.00030308,4]
[327700111,1716327033979,-532.49095038,0.00030308,4]
[327700112,1716327033989,-209.09061157,0.00030308,4]
[327700113,1716327033998,-407.83722133,0.00030308,4]
[327700114,1716327034008,-282.44814109,0.00030308,4]
[327700115,1716327034018,-268.32530534,0.00030308,4]
[327700116,1716327034028,-306.37473052,0.00030308,4]
[327700117,1716327034037,-39369.69971533,0.00030308,4]
[327700118,1716327034047,-764.56629757,0.00030309,4]
[327700119,1716327034057,-100000.0,0.0003031,2]
[327700120,1716327034067,-401.6954,0.0003031,2]
[327700121,1716327034076,-77137.4434,0.0003031,2]
[327700122,1716327034086,-157.052206,0.00030348,32]
[327700123,1716327034096,-500.0,0.0003041,6]
[327700124,1716327034105,-500.0,0.0003041,6]
[327700125,1716327034115,-500.0,0.0003041,6]
[327700126,1716327034124,-500.0,0.0003041,6]
[327700127,1716327034134,-500.0,0.0003041,6]
[327700128,1716327034144,-500.0,0.0003041,6]
[327700129,1716327034154,-500.0,0.0003041,6]
[327700130,1716327034166,-500.0,0.0003041,6]
[327700131,1716327034177,-500.0,0.0003041,6]
[327700132,1716327034186,-500.0,0.0003041,6]
[327700133,1716327034196,-500.0,0.0003041,6]
[327700134,1716327034205,-500.0,0.0003041,6]
[327700135,1716327034214,-500.0,0.0003041,6]
[327700136,1716327034224,-500.0,0.0003041,6]
[327700137,1716327034234,-333.30739443,0.0003041,6]
[327700138,1716327034246,-500.0,0.0003041,6]
[327700139,1716327034256,-500.0,0.0003041,6]
[327700140,1716327034266,-500.0,0.0003041,6]
[327700141,1716327034275,-500.0,0.0003041,6]
[327700142,1716327034285,-500.0,0.0003041,6]
[327700143,1716327034295,-500.0,0.0003041,6]
[327700144,1716327034304,-500.0,0.0003041,6]
[327700145,1716327034314,-500.0,0.0003041,6]
[327700146,1716327034327,-500.0,0.0003041,6]
[327700147,1716327034337,-500.0,0.0003041,6]
[327700148,1716327034351,-500.0,0.0003041,6]
[327700149,1716327034362,-500.0,0.0003041,6]
[327700150,1716327034371,-357.35273874,0.0003041,6]
[327700151,1716327034381,-500.0,0.0003041,6]
[327700152,1716327034391,-500.0,0.0003041,6]
[327700153,1716327034401,-618.45269623,0.0003041,6]
[327700154,1716327034411,-500.0,0.0003041,6]
[327700155,1716327034422,-500.0,0.0003041,6]
[327700156,1716327034432,-500.0,0.0003041,6]
[327700157,1716327034442,-503.9079866,0.0003041,6]
[327700158,1716327034451,-500.0,0.0003041,6]
[327700159,1716327034461,-500.0,0.0003041,6]
[327700160,1716327034471,-500.0,0.0003041,6]
[327700161,1716327034481,-300.00882013,0.0003041,6]
[327700162,1716327034491,-500.0,0.0003041,6]
[327700163,1716327034501,-500.0,0.0003041,6]
[327700164,1716327034511,-500.0,0.0003041,6]
[327700165,1716327034521,-500.0,0.0003041,6]
[327700166,1716327034531,-500.0,0.0003041,6]
[327700167,1716327034541,-500.0,0.0003041,6]
[327700168,1716327034551,-376.80861141,0.0003041,6]
[327700169,1716327034560,-500.0,0.0003041,6]
[327700170,1716327034570,-500.0,0.0003041,6]
[327700171,1716327034581,-500.0,0.0003041,6]
[327700172,1716327034590,-500.0,0.0003041,6]
[327700173,1716327034601,-500.0,0.0003041,6]
[327700174,1716327034611,-500.0,0.0003041,6]
[327700175,1716327034621,-500.0,0.0003041,6]
[327700176,1716327034632,-500.0,0.0003041,6]
[327700177,1716327034641,-500.0,0.0003041,6]
[327700178,1716327034651,-500.0,0.0003041,6]
[327700179,1716327034661,-499.97813549,0.0003041,6]
[327700180,1716327034672,-168.83520601,0.0003041,6]
[327700181,1716327034682,-583.29161061,0.0003041,6]
[327700182,1716327034692,-500.0,0.0003041,6]
[327700183,1716327034701,-302.67036282,0.0003041,6]
[327700184,1716327034711,-500.0,0.0003041,6]
[327700185,1716327034721,-500.0,0.0003041,6]
[327700186,1716327034731,-500.0,0.0003041,6]
[327700187,1716327034740,-556.55,0.0003041,30]
[327700188,1716327034750,-500.0,0.0003041,6]
[327700189,1716327034760,-859.67,0.0003041,6]
[327700190,1716327034769,-500.0,0.0003041,6]
[327700191,1716327034779,-176.06728381,0.0003041,6]
[327700192,1716327034789,-310.0,0.0003041,2]
[327700193,1716327034799,-208.87573481,0.0003041,6]
[327700194,1716327034808,-500.0,0.0003041,6]
[327700195,1716327034819,-500.0,0.0003041,6]
[327700196,1716327034829,-537.68869468,0.0003041,6]
[327700197,1716327034839,-500.0,0.0003041,6]
[327700198,1716327034849,-500.0,0.0003041,6]
[327700199,1716327034859,-500.0,0.0003041,6]
[327700200,1716327034868,-155.0,0.0003041,2]
[327700201,1716327034879,-252.81892324,0.0003041,6]
[327700202,1716327034900,-247.18107676,0.0003041,6]
[327700203,1716327034909,-42.21318922,0.0003041,6]
[327700204,1716327034926,-457.78681078,0.0003041,6]
[327700205,1716327034936,-500.0,0.0003041,6]
[327700206,1716327034946,-119.02348929,0.0003041,6]
[327700207,1716327034972,-380.97651071,0.0003041,6]
[327700208,1716327034983,-500.0,0.0003041,6]
[327700209,1716327034993,-500.0,0.0003041,6]
[327700210,1716327035002,-500.0,0.0003041,6]
[327700211,1716327035012,-639.31,0.0003041,6]
[327700212,1716327035023,-481.89060554,0.0003041,6]
[327700213,1716327035035,-18.10939446,0.0003041,6]
[327700214,1716327035044,-500.0,0.0003041,6]
[327700215,1716327035054,-500.0,0.0003041,6]
[327700216,1716327035063,-500.0,0.0003041,6]
[327700217,1716327035072,-500.0,0.0003041,6]
[327700218,1716327035082,-500.0,0.0003041,6]
[327700219,1716327035094,-500.0,0.0003041,6]
[327700220,1716327035104,-500.0,0.0003041,6]
[327700221,1716327035115,-500.0,0.0003041,6]
[327700222,1716327035124,-500.0,0.0003041,6]
[327700223,1716327035134,-500.0,0.0003041,6]
[327700224,1716327035143,-500.0,0.0003041,6]
[327700225,1716327035153,-500.0,0.0003041,6]
[327700226,1716327035162,-500.0,0.0003041,6]
[327700227,1716327035173,-500.0,0.0003041,6]
[327700228,1716327035182,-500.0,0.0003041,6]
[327700229,1716327035192,-500.0,0.0003041,6]
[327700230,1716327035201,-500.0,0.0003041,6]
[327700231,1716327035211,-500.0,0.0003041,6]
[327700232,1716327035219,-500.0,0.0003041,6]
[327700233,1716327035229,-500.0,0.0003041,6]
[327700234,1716327035240,-500.0,0.0003041,6]
[327700235,1716327035255,-500.0,0.0003041,6]
[327700236,1716327035265,-500.0,0.0003041,6]
[327700237,1716327035275,-500.0,0.0003041,6]
[327700238,1716327035284,-500.0,0.0003041,6]
[327700239,1716327035295,-500.0,0.0003041,6]
[327700240,1716327035305,-500.0,0.0003041,6]
[327700241,1716327035315,-500.0,0.0003041,6]
[327700242,1716327035326,-500.0,0.0003041,6]
[327700243,1716327035413,-60.51196384,0.0003041,6]
[327700244,1716327035426,-439.48803616,0.0003041,6]
[327700245,1716327035435,-111.75344879,0.0003041,6]
[327700246,1716327035447,-306.20467746,0.0003041,6]
[327700247,1716327035458,-82.04187375,0.0003041,6]
[327700248,1716327035468,-197.30478283,0.0003041,6]
[327700249,1716327035480,-302.69521717,0.0003041,6]
[327700250,1716327035490,-500.0,0.0003041,6]
[327700251,1716327035500,-500.0,0.0003041,6]
[327700252,1716327035511,-587.33689884,0.0003041,6]
[327700253,1716327035520,-500.0,0.0003041,6]
[327700254,1716327035531,-500.0,0.0003041,6]
[327700255,1716327035540,-500.0,0.0003041,6]
[327700256,1716327035551,-500.0,0.0003041,6]
[327700257,1716327035560,-500.0,0.0003041,6]
[327700258,1716327035569,-508.88,0.0003041,6]
[327700259,1716327035579,-500.0,0.0003041,6]
[327700260,1716327035589,-500.0,0.0003041,6]
[327700261,1716327035598,-500.0,0.0003041,6]
[327700262,1716327035608,-500.0,0.0003041,6]
[327700263,1716327035617,-500.0,0.0003041,6]
[327700264,1716327035628,-500.0,0.0003041,6]
[327700265,1716327035638,-500.0,0.0003041,6]
[327700266,1716327035648,-500.0,0.0003041,6]
[327700267,1716327035659,-500.0,0.0003041,6]
[327700268,1716327035670,-500.0,0.0003041,6]
[327700269,1716327035681,-521.74,0.0003041,6]
[327700270,1716327035691,-500.0,0.0003041,6]
[327700271,1716327035701,-410.52439202,0.0003041,6]
[327700272,1716327035711,-500.0,0.0003041,6]
[327700273,1716327035721,-500.0,0.0003041,6]
[327700274,1716327035730,-500.0,0.0003041,6]
[327700275,1716327035741,-500.0,0.0003041,6]
[327700276,1716327035751,-357.99,0.0003041,6]
[327700277,1716327035760,-500.0,0.0003041,6]
[327700278,1716327035769,-309.4063184,0.0003041,6]
[327700279,1716327035783,-190.5936816,0.0003041,6]
[327700280,1716327035796,-500.0,0.0003041,6]
[327700281,1716327035805,-500.0,0.0003041,6]
[327700282,1716327035816,-500.0,0.0003041,6]
[327700283,1716327035826,-500.0,0.0003041,6]
[327700284,1716327035835,-500.0,0.0003041,6]
[327700285,1716327035845,-681.72,0.0003041,6]
[327700286,1716327035854,-1609.55,0.0003041,6]
[327700287,1716327035863,-500.0,0.0003041,6]
[327700288,1716327035879,-500.0,0.0003041,6]
[327700289,1716327035894,-500.0,0.0003041,6]
[327700290,1716327035903,-500.0,0.0003041,6]
[327700291,1716327035913,-500.0,0.0003041,6]
[327700292,1716327035922,-563.48,0.0003041,6]
[327700293,1716327035932,-500.0,0.0003041,6]
[327700294,1716327035942,-500.0,0.0003041,6]
[327700295,1716327035952,-500.0,0.0003041,6]
[327700296,1716327035961,-612.63,0.0003041,6]
[327700297,1716327035971,-500.0,0.0003041,6]
[327700298,1716327035980,-904.21,0.0003041,6]
[327700299,1716327035989,-500.0,0.0003041,6]
[327700300,1716327035999,-500.0,0.0003041,6]
[327700301,1716327036008,-500.0,0.0003041,6]
[327700302,1716327036017,-500.0,0.0003041,6]
[327700303,1716327036028,-943.3,0.0003041,6]
[327700304,1716327036037,-500.0,0.0003041,6]
[327700305,1716327036047,-500.0,0.0003041,6]
[327700306,1716327036056,-3293.21,0.0003041,6]
[327700307,1716327036065,-2624.01,0.0003041,6]
[327700308,1716327036074,-620.73,0.0003041,6]
[327700309,1716327036084,-11555.67,0.0003041,6]
[327700310,1716327036093,-500.0,0.0003041,6]
[327700311,1716327036102,-1047.52,0.0003041,6]
[327700312,1716327036112,-500.0,0.0003041,6]
[327700313,1716327036121,-500.0,0.0003041,6]
[327700314,1716327036131,-500.0,0.0003041,6]
[327700315,1716327036141,-2138.33,0.0003041,6]